bitfinex/quotes_SOLUSD_20250226
["timestamp","ask_amount","ask_price","bid_price","bid_amount"]
[1740612138999,0.063,135.73,135.68,89.7702]
[1740612140115,0.063,135.73,135.68,82.4]
[1740612140313,0.063,135.73,135.68,89.7702]
[1740612140898,0.063,135.73,135.68,7.3702]
[1740612141805,0.063,135.73,135.67,7.22]
[1740612141997,0.063,135.73,135.67,25.86964886]
[1740612142198,82.9,135.72,135.67,7.22]
[1740612142508,84.83450728,135.71,135.66,0.03]
[1740612142694,82.9,135.7,135.66,0.03]
[1740612143696,83.6369,135.7,135.66,0.03]
[1740612143895,82.9,135.7,135.66,0.03]
[1740612144691,91.0563,135.72,135.66,0.03]
[1740612144895,91.7931,135.72,135.66,0.03]
[1740612145107,91.0563,135.72,135.66,0.03]
[1740612145714,91.0563,135.72,135.66,18.67964886]
[1740612146612,0.063,135.73,135.66,101.07964886]
[1740612146814,0.063,135.73,135.68,18.64964886]
[1740612147612,0.063,135.73,135.7,18.64964886]
[1740612147811,0.063,135.73,135.7,101.04964886]
[1740612148501,0.063,135.73,135.7,103.04964886]
[1740612148697,0.063,135.73,135.71,1.0]
[1740612148895,0.063,135.73,135.72,7.22]
[1740612149809,0.063,135.73,135.72,14.5881]
[1740612150495,0.063,135.75,135.72,51.65794886]
[1740612151012,0.063,135.75,135.7,7.3691]
[1740612151215,1.6245,135.75,135.69,82.4]
[1740612151433,84.83427702,135.74,135.66,0.03]
[1740612151599,92.05427702,135.74,135.66,0.03]
[1740612151917,0.7367,135.73,135.66,0.03]
[1740612152102,90.8567,135.74,135.66,0.03]
[1740612152307,85.11879212,135.73,135.66,0.03]
[1740612152605,84.97663055,135.73,135.66,0.03]
[1740612152819,82.9,135.73,135.66,0.03]
[1740612153208,82.9,135.72,135.66,0.03]
[1740612153911,83.6368,135.72,135.66,7.4013]
[1740612154622,1.69536157,135.7,135.66,0.03]
[1740612156104,0.7369,135.69,135.66,0.03]
[1740612156305,82.9,135.68,135.66,0.03]
[1740612158701,82.9,135.71,135.66,0.03]
[1740612158906,82.9,135.71,135.67,18.64964886]
[1740612159624,82.9,135.71,135.68,7.3702]
[1740612160327,84.4764,135.74,135.69,18.64964886]
[1740612160534,82.9,135.74,135.69,18.64964886]
[1740612161415,0.063,135.75,135.69,101.04964886]
[1740612161923,0.063,135.75,135.7,7.3691]
[1740612163207,0.063,135.75,135.71,18.64964886]
[1740612163724,0.063,135.75,135.71,25.86964886]
[1740612165132,0.063,135.75,135.71,14.5885]
[1740612165441,1.99680746,135.75,135.67,82.4]
[1740612165731,82.9,135.74,135.66,138.8608]
[1740612165943,1.99680746,135.75,135.66,138.8608]
[1740612165944,82.9,135.73,135.66,138.8608]
[1740612166319,82.9,135.73,135.66,7.25]
[1740612166529,82.9,135.72,135.66,0.03]
[1740612166845,92.41657305,135.71,135.66,0.03]
[1740612167016,0.7369,135.69,135.66,0.03]
[1740612167218,2.67219469,135.69,135.66,0.03]
[1740612168917,82.9,135.68,135.66,0.03]
[1740612169821,82.9,135.67,135.66,0.03]
[1740612172444,0.87916157,135.67,135.66,0.03]
[1740612173232,2.81495742,135.67,135.66,0.03]
[1740612174049,2.07791683,135.69,135.66,0.03]
[1740612174233,2.81481683,135.69,135.66,0.03]
[1740612174433,2.67265526,135.69,135.66,0.03]
[1740612175724,0.87906157,135.7,135.66,0.03]
[1740612176345,0.7369,135.7,135.66,0.03]
[1740612176724,2.67197883,135.69,135.66,0.03]
[1740612177326,7.5819,135.71,135.66,0.03]
[1740612178124,82.9,135.7,135.66,0.03]
[1740612181524,83.6369,135.7,135.66,0.03]
[1740612182144,82.9,135.7,135.66,0.03]
[1740612182527,82.9,135.74,135.66,0.03]
[1740612182730,82.9,135.73,135.66,0.03]
[1740612182933,82.9,135.73,135.67,18.64964886]
[1740612183249,82.9,135.73,135.68,7.3702]
[1740612183744,82.9,135.73,135.67,7.22]
[1740612183745,83.6367,135.73,135.67,7.22]
[1740612183952,85.57117346,135.73,135.67,7.22]
[1740612184248,0.14216157,135.72,135.66,82.43]
[1740612184447,84.83488186,135.71,135.66,0.03]
[1740612184631,82.9,135.7,135.66,0.03]
[1740612185249,0.7369,135.69,135.66,0.03]
[1740612185629,82.9,135.7,135.66,0.03]
[1740612186640,83.6369,135.7,135.66,0.03]
[1740612187250,0.14216157,135.67,135.66,0.03]
[1740612187560,2.07794724,135.67,135.66,0.03]
[1740612187852,2.22010881,135.67,135.66,0.03]
[1740612188057,82.9,135.69,135.66,0.03]
[1740612188359,89.0833,135.71,135.66,0.03]
[1740612188533,82.9,135.7,135.66,0.03]
[1740612189254,83.6369,135.7,135.66,0.03]
[1740612189829,82.9,135.7,135.66,0.03]
[1740612190355,83.6369,135.7,135.66,0.03]
[1740612190728,82.9,135.7,135.66,0.03]
[1740612191541,82.9,135.73,135.66,0.03]
[1740612192869,83.6367,135.73,135.66,0.03]
[1740612193371,85.57123547,135.73,135.66,0.03]
[1740612194461,83.6367,135.73,135.66,0.03]
[1740612195356,2.88562314,135.7,135.66,0.03]
[1740612195533,0.28432314,135.68,135.66,0.03]
[1740612195734,1.93571729,135.67,135.66,0.03]
[1740612196150,2.22004043,135.67,135.66,0.03]
[1740612197465,2.95704043,135.67,135.66,0.03]
[1740612198063,4.95704043,135.67,135.66,0.03]
[1740612198246,4.95704043,135.67,135.63,0.03]
[1740612198247,0.14216157,135.64,135.63,0.03]
[1740612198443,1.93620364,135.64,135.63,0.03]
[1740612198661,9.15588849,135.66,135.63,0.03]
[1740612199063,1.93588849,135.66,135.63,0.03]
[1740612199757,2.67264639,135.67,135.63,0.03]
[1740612200966,7.22,135.68,135.63,0.03]
[1740612202056,82.9,135.67,135.63,0.03]
[1740612205486,82.9,135.69,135.63,26.05264886]
[1740612205851,82.9,135.69,135.63,44.48514886]
[1740612207567,82.9,135.72,135.63,301.55014886]
[1740612207771,82.9,135.72,135.64,20.07613357]
[1740612208074,82.9,135.72,135.64,18.64964886]
[1740612208668,82.9,135.72,135.64,19.64964886]
[1740612209476,82.9,135.72,135.65,7.3719]
[1740612209772,82.9,135.72,135.64,7.22]
[1740612209773,83.6368,135.72,135.64,7.22]
[1740612210375,82.9,135.72,135.65,18.64964886]
[1740612210871,82.9,135.72,135.64,7.22]
[1740612211081,82.9,135.71,135.63,0.03]
[1740612211263,1.93505444,135.7,135.63,0.03]
[1740612211579,84.83505444,135.7,135.63,0.03]
[1740612211974,0.7369,135.69,135.63,0.03]
[1740612212167,82.9,135.68,135.63,0.03]
[1740612213080,82.9,135.67,135.63,0.03]
[1740612213976,83.6371,135.67,135.63,0.03]
[1740612214277,84.83537941,135.66,135.63,0.03]
[1740612214463,82.9,135.65,135.63,0.03]
[1740612215061,84.83573152,135.64,135.63,0.03]
[1740612216282,84.83573152,135.64,135.63,0.0001]
[1740612216283,2.81509309,135.64,135.63,0.0001]
[1740612216662,2.95725466,135.64,135.63,0.0001]
[1740612216883,1.75636157,135.62,135.61,0.0001]
[1740612217080,0.28432314,135.61,135.6,0.0001]
[1740612217282,6.56372314,135.61,135.6,0.0001]
[1740612218464,7.30112314,135.61,135.6,0.0001]
[1740612221187,7.44328471,135.61,135.6,0.0001]
[1740612221389,0.7374,135.61,135.6,0.0001]
[1740612221681,0.87956157,135.61,135.6,0.0001]
[1740612223469,0.14216157,135.57,135.52,0.03]
[1740612223670,2.5815,135.56,135.52,0.03]
[1740612223867,0.14216157,135.54,135.52,0.03]
[1740612224284,2.07967213,135.53,135.52,0.03]
[1740612224568,1.14216157,135.52,135.45,2.2022348]
[1740612224782,9.30036104,135.51,135.39,14.606]
[1740612224986,0.14216157,135.5,135.39,14.606]
[1740612225191,1.93811034,135.49,135.39,14.606]
[1740612225395,0.14216157,135.48,135.39,14.606]
[1740612225696,82.9,135.47,135.39,14.606]
[1740612226387,82.9,135.47,135.4,18.64964886]
[1740612227595,82.9,135.49,135.4,239.84964886]
[1740612227772,82.9,135.49,135.4,238.84964886]
[1740612227973,82.9,135.49,135.4,237.84964886]
[1740612228173,82.9,135.49,135.4,238.84964886]
[1740612228475,82.9,135.49,135.41,25.8473]
[1740612228876,82.9,135.49,135.42,18.64964886]
[1740612229099,82.9,135.49,135.42,101.04964886]
[1740612230493,82.9,135.51,135.44,18.64964886]
[1740612231080,82.9,135.51,135.43,25.8435]
[1740612231286,83.6379,135.51,135.43,25.8435]
[1740612231513,82.9,135.51,135.43,25.8435]
[1740612231808,82.9,135.51,135.44,18.64964886]
[1740612232488,82.9,135.51,135.46,18.64964886]
[1740612233479,82.9,135.51,135.45,91.4353]
[1740612234291,82.9,135.55,135.47,7.3817]
[1740612234596,0.063,135.51,135.48,25.88964886]
[1740612236296,0.063,135.51,135.48,14.621]
[1740612236500,0.063,135.51,135.45,84.0526]
[1740612236706,82.9,135.5,135.45,9.0352]
[1740612237083,82.9,135.5,135.45,7.3826]
[1740612237803,82.9,135.49,135.44,7.24]
[1740612238415,82.9,135.48,135.44,7.24]
[1740612239485,82.9,135.48,135.44,14.6233]
[1740612240503,82.9,135.48,135.45,18.64964886]
[1740612240703,82.9,135.48,135.45,26.03224886]
[1740612241493,0.063,135.51,135.45,26.03224886]
[1740612241803,0.063,135.51,135.45,126.88914886]
[1740612242487,0.063,135.51,135.45,108.43224886]
[1740612243612,0.063,135.51,135.45,89.7826]
[1740612244409,0.20516157,135.51,135.45,97.0226]
[1740612244925,0.063,135.51,135.45,97.0226]
[1740612246117,0.063,135.51,135.46,18.64964886]
[1740612246322,0.063,135.51,135.47,7.3817]
[1740612248106,0.063,135.51,135.48,18.64964886]
[1740612248615,0.063,135.51,135.5,18.64964886]
[1740612248806,0.063,135.51,135.5,7.24]
[1740612250312,0.063,135.51,135.5,14.62]
[1740612251911,0.0001,135.51,135.5,14.62]
[1740612252600,0.0001,135.51,135.5,115.66964886]
[1740612252794,0.0001,135.51,135.5,116.953972]
[1740612253899,0.0001,135.51,135.5,115.66964886]
[1740612254100,0.0001,135.51,135.5,14.62]
[1740612255415,0.0001,135.51,135.5,14.90432314]
[1740612256117,0.0001,135.51,135.5,118.23829514]
[1740612256318,82.9,135.6,135.51,19.933972]
[1740612256497,82.9,135.6,135.52,25.8263]
[1740612257198,0.063,135.62,135.53,18.933972]
[1740612258211,0.8003,135.62,135.53,19.933972]
[1740612258417,0.063,135.62,135.56,18.64964886]
[1740612258626,0.063,135.6,135.57,7.24]
[1740612260218,0.063,135.6,135.58,7.3757]
[1740612260425,0.063,135.6,135.57,14.616]
[1740612260840,0.063,135.6,135.57,7.24]
[1740612262309,0.063,135.6,135.57,14.6162]
[1740612263836,0.063,135.6,135.58,18.64964886]
[1740612264135,0.063,135.6,135.59,7.3751]
[1740612264425,0.063,135.6,135.58,26.02514886]
[1740612267225,0.063,135.6,135.58,108.42514886]
[1740612267738,0.063,135.6,135.58,251.82434886]
[1740612267914,0.063,135.6,135.58,32.62434886]
[1740612268113,0.063,135.6,135.58,26.02514886]
[1740612268333,0.063,135.6,135.57,14.596]
[1740612268815,0.063,135.6,135.58,18.64964886]
[1740612269149,0.063,135.6,135.57,14.596]
[1740612269347,0.063,135.6,135.58,18.64964886]
[1740612269520,0.063,135.6,135.57,14.596]
[1740612269722,0.063,135.6,135.58,18.64964886]
[1740612271830,0.063,135.6,135.59,7.3751]
[1740612274550,0.063,135.6,135.59,26.02474886]
[1740612276437,0.063,135.6,135.59,108.42474886]
[1740612278333,0.063,135.6,135.58,7.3754]
[1740612278956,0.063,135.6,135.58,26.02504886]
[1740612280029,0.063,135.6,135.57,89.62]
[1740612280230,0.063,135.6,135.57,82.4]
[1740612280934,0.063,135.6,135.58,18.64964886]
[1740612281657,0.063,135.6,135.58,26.02494886]
[1740612282361,0.063,135.6,135.57,89.7761]
[1740612283060,0.063,135.6,135.57,82.4]
[1740612283235,0.063,135.6,135.54,82.4]
[1740612283428,0.063,135.6,135.54,89.62]
[1740612283742,0.7375,135.58,135.53,7.22]
[1740612284450,83.6375,135.59,135.53,7.22]
[1740612284830,82.9,135.59,135.54,18.64964886]
[1740612285025,82.9,135.59,135.53,7.22]
[1740612285763,82.9,135.59,135.53,14.5981]
[1740612286133,82.9,135.59,135.54,18.64964886]
[1740612286532,82.9,135.59,135.53,14.5981]
[1740612287345,83.6375,135.59,135.53,7.22]
[1740612287729,83.6375,135.59,135.53,14.5984]
[1740612287730,82.9,135.59,135.53,14.5984]
[1740612288138,82.9,135.59,135.54,18.64964886]
[1740612288925,0.063,135.6,135.54,101.04964886]
[1740612289850,0.063,135.6,135.56,18.64964886]
[1740612291550,0.063,135.6,135.59,0.14216157]
[1740612291755,0.063,135.6,135.59,252.58691043]
[1740612292350,0.0001,135.6,135.59,252.58691043]
[1740612292954,0.0001,135.6,135.59,277.09123357]
[1740612293135,0.0001,135.6,135.59,252.58691043]
[1740612293331,0.0001,135.6,135.59,253.58691043]
[1740612293530,0.0001,135.6,135.59,252.58691043]
[1740612293858,0.0001,135.6,135.59,254.87123357]
[1740612294245,0.0001,135.6,135.59,252.58691043]
[1740612295258,0.0001,135.6,135.59,253.87123357]
[1740612295457,0.0001,135.6,135.59,254.87123357]
[1740612296666,0.0001,135.6,135.59,253.87123357]
[1740612297045,0.0001,135.6,135.59,252.87123357]
[1740612297474,0.0001,135.6,135.59,253.87123357]
[1740612298269,0.0001,135.6,135.59,254.01339514]
[1740612298572,0.0001,135.6,135.59,255.01339514]
[1740612298859,0.0001,135.6,135.59,254.01339514]
[1740612299042,0.0001,135.6,135.59,253.87123357]
[1740612299241,0.0001,135.6,135.59,252.87123357]
[1740612299442,0.0001,135.6,135.59,252.58691043]
[1740612300039,0.0001,135.6,135.59,252.44474886]
[1740612300239,0.0001,135.6,135.59,252.58691043]
[1740612300440,0.0001,135.62,135.61,0.14216157]
[1740612301457,0.0001,135.62,135.61,240.133972]
[1740612301773,0.0001,135.62,135.61,238.133972]
[1740612301963,0.0001,135.62,135.61,240.41829514]
[1740612302476,0.0001,135.62,135.61,238.99181043]
[1740612302772,0.0001,135.62,135.61,108.56581043]
[1740612303678,0.0001,135.62,135.61,108.42364886]
[1740612304261,0.0001,135.62,135.61,246.22364886]
[1740612304449,0.0001,135.62,135.61,246.65013357]
[1740612305363,0.0001,135.62,135.61,270.01229514]
[1740612305671,0.063,135.65,135.62,2.0]
[1740612305845,0.063,135.65,135.64,18.933972]
[1740612306050,0.063,135.65,135.64,26.153972]
[1740612306469,0.0001,135.65,135.64,28.43829514]
[1740612306768,0.0001,135.65,135.64,255.01069514]
[1740612307151,0.0001,135.65,135.64,254.01069514]
[1740612307353,0.0001,135.65,135.64,255.01069514]
[1740612307553,0.0001,135.65,135.64,253.01069514]
[1740612308080,0.0001,135.65,135.64,254.01069514]
[1740612308450,0.0001,135.65,135.64,255.01069514]
[1740612308771,0.0001,135.65,135.64,252.58421043]
[1740612308967,0.0001,135.65,135.64,252.44204886]
[1740612309150,0.0001,135.65,135.64,108.42204886]
[1740612313468,0.0001,135.65,135.64,89.7724]
[1740612314164,0.0001,135.65,135.62,155.44964886]
[1740612314165,0.0001,135.65,135.62,7.3735]
[1740612314976,0.0001,135.65,135.63,18.64964886]
[1740612315358,0.0001,135.65,135.64,7.3724]
[1740612316275,0.0001,135.65,135.64,26.02204886]
[1740612317259,0.0001,135.65,135.64,245.64853357]
[1740612318159,0.0001,135.65,135.64,267.86853357]
[1740612318380,0.0001,135.65,135.64,270.01069514]
[1740612318569,0.0001,135.65,135.64,269.01069514]
[1740612318760,0.0001,135.65,135.64,270.01069514]
[1740612319371,0.727,135.71,135.66,0.14216157]
[1740612319681,0.727,135.71,135.67,18.64964886]
[1740612320771,6.5004,135.72,135.69,18.64964886]
[1740612320972,6.5004,135.72,135.69,101.04964886]
[1740612321174,0.063,135.71,135.69,101.04964886]
[1740612322075,0.063,135.71,135.69,82.4]
[1740612322270,1.6172,135.71,135.67,7.3706]
[1740612322473,1.6172,135.71,135.66,14.5911]
[1740612322779,0.7369,135.7,135.64,7.22]
[1740612323176,0.063,135.71,135.66,0.14216157]
[1740612323479,0.063,135.71,135.66,19.07613357]
[1740612323979,0.063,135.71,135.66,18.79181043]
[1740612324764,0.063,135.71,135.68,18.64964886]
[1740612324963,0.063,135.71,135.69,7.22]
[1740612325181,0.063,135.71,135.69,89.62]
[1740612326782,0.0001,135.71,135.7,26.01874886]
[1740612329776,0.0001,135.71,135.7,245.64523357]
[1740612330572,0.0001,135.71,135.7,269.00739514]
[1740612331165,0.0001,135.71,135.7,270.00739514]
[1740612331592,0.063,135.73,135.72,42.153972]
[1740612331779,0.063,135.73,135.72,261.353972]
[1740612331974,0.063,135.73,135.72,260.49613357]
[1740612332180,0.063,135.73,135.72,237.99181043]
[1740612332595,0.063,135.73,135.72,238.27613357]
[1740612333389,7.5764,135.79,135.74,18.64964886]
[1740612333596,7.5764,135.79,135.74,108.26964886]
[1740612334189,8.3128,135.79,135.74,108.26964886]
[1740612334492,8.3128,135.79,135.74,25.86964886]
[1740612335194,7.5764,135.79,135.74,25.86964886]
[1740612335577,7.5764,135.79,135.74,33.23634886]
[1740612336091,8.3128,135.79,135.74,25.86964886]
[1740612337589,8.3128,135.79,135.74,7.22]
[1740612337978,10.1538,135.79,135.74,7.22]
[1740612338577,10.1538,135.79,135.71,26.01804886]
[1740612338798,93.0538,135.79,135.71,115.63804886]
[1740612340089,0.7365,135.77,135.71,7.22]
[1740612342083,0.7365,135.77,135.71,14.5884]
[1740612344087,0.7365,135.77,135.71,7.22]
[1740612344500,7.6573,135.76,135.71,7.22]
[1740612344806,90.5573,135.76,135.7,18.64964886]
[1740612344984,0.14216157,135.75,135.69,0.063]
[1740612345185,82.9,135.74,135.69,0.063]
[1740612346423,0.7367,135.73,135.69,0.063]
[1740612346702,82.9,135.74,135.69,0.063]
[1740612348005,0.14216157,135.73,135.69,0.063]
[1740612348504,0.7368,135.72,135.69,0.063]
[1740612350591,83.6368,135.72,135.69,0.063]
[1740612351701,0.14216157,135.73,135.69,0.063]
[1740612351702,1.5205,135.7,135.69,0.063]
[1740612352009,7.6075,135.7,135.69,0.063]
[1740612364522,8.074,135.74,135.69,0.063]
[1740612364700,82.9,135.73,135.69,0.063]
[1740612366315,82.9,135.73,135.69,7.4327]
[1740612366513,82.9,135.73,135.69,0.063]
[1740612368509,83.6366,135.76,135.69,0.063]
[1740612370813,85.478,135.76,135.69,0.063]
[1740612371399,83.6366,135.76,135.69,0.063]
[1740612371709,82.9,135.76,135.69,0.063]
[1740612372024,83.6365,135.76,135.69,0.063]
[1740612377205,0.14216157,135.74,135.69,0.063]
[1740612377407,2.07679922,135.74,135.69,0.063]
[1740612378209,0.14216157,135.73,135.69,0.063]
[1740612378419,83.9,135.75,135.69,0.063]
[1740612378420,82.9,135.75,135.69,0.063]
[1740612378609,0.14216157,135.74,135.69,0.063]
[1740612379426,0.7367,135.73,135.69,0.063]
[1740612380301,82.9,135.72,135.69,0.063]
[1740612381509,0.7368,135.71,135.69,0.063]
[1740612382120,82.9,135.72,135.69,0.063]
[1740612383505,83.6368,135.72,135.69,0.063]
[1740612386629,0.87906157,135.7,135.69,0.063]
[1740612387632,9.55972942,135.71,135.69,0.063]
[1740612387633,9.7842,135.75,135.69,0.063]
[1740612387937,0.14216157,135.74,135.69,0.063]
[1740612388316,9.7842,135.75,135.69,0.063]
[1740612388518,0.7367,135.74,135.69,0.063]
[1740612389532,0.7366,135.75,135.69,0.063]
[1740612390420,0.42648471,135.74,135.69,0.063]
[1740612390622,1.0,135.77,135.69,0.063]
[1740612390623,1.16298471,135.76,135.69,0.063]
[1740612391823,1.16298471,135.76,135.69,7.4327]
[1740612392020,0.14216157,135.75,135.69,0.063]
[1740612392224,0.14216157,135.74,135.69,0.063]
[1740612393559,0.7367,135.73,135.69,0.063]
[1740612395327,82.9,135.72,135.69,0.063]
[1740612397962,82.9,135.75,135.7,18.64964886]
[1740612398328,0.7366,135.76,135.7,18.64964886]
[1740612398628,83.6365,135.77,135.7,25.84964886]
[1740612400326,83.6365,135.77,135.71,7.3686]
[1740612401445,83.6365,135.77,135.7,31.86694886]
[1740612401446,82.9,135.77,135.7,31.86694886]
[1740612401649,82.93,135.79,135.72,20.15704886]
[1740612401946,0.03,135.79,135.73,0.42648471]
[1740612402747,0.03,135.79,135.74,18.64964886]
[1740612402932,0.03,135.79,135.75,7.2]
[1740612403127,0.03,135.79,135.75,89.6]
[1740612403739,0.03,135.79,135.77,18.64964886]
[1740612405566,0.03,135.79,135.75,89.6]
[1740612405858,0.03,135.79,135.76,18.64964886]
[1740612408936,0.03,135.79,135.76,26.01544886]
[1740612412258,0.03,135.79,135.76,7.3658]
[1740612412461,0.03,135.79,135.76,26.01544886]
[1740612412656,0.03,135.79,135.77,18.64964886]
[1740612412849,0.03,135.79,135.76,7.3658]
[1740612413161,0.03,135.79,135.76,26.01544886]
[1740612414571,0.03,135.79,135.77,26.01494886]
[1740612414945,0.03,135.79,135.77,18.64964886]
[1740612415144,0.03,135.79,135.76,7.3657]
[1740612415353,0.03,135.79,135.75,96.9663]
[1740612415873,83.07216157,135.79,135.72,1.5074]
[1740612416054,85.00603025,135.79,135.71,89.7684]
[1740612416361,84.18432314,135.78,135.7,7.2]
[1740612416565,0.14216157,135.76,135.7,7.2]
[1740612416743,83.6366,135.75,135.7,7.2]
[1740612417350,83.6366,135.75,135.69,7.4326]
[1740612418154,83.6366,135.75,135.7,18.64964886]
[1740612418155,82.9,135.75,135.7,18.64964886]
[1740612418559,82.9,135.78,135.7,101.04964886]
[1740612418743,82.9,135.78,135.71,7.3686]
[1740612419560,82.9,135.78,135.72,18.64964886]
[1740612419859,0.03,135.79,135.75,0.42648471]
[1740612420075,0.03,135.79,135.76,18.64964886]
[1740612420266,0.03,135.79,135.77,7.2]
[1740612420952,0.03,135.79,135.77,14.5652]
[1740612421146,0.03,135.79,135.77,7.2]
[1740612421346,0.03,135.79,135.78,18.64964886]
[1740612422974,0.03,135.79,135.78,108.41444886]
[1740612424651,0.0001,135.79,135.78,253.47219514]
[1740612424871,0.063,135.83,135.81,0.14216157]
[1740612425101,0.063,135.83,135.82,25.84964886]
[1740612425382,0.063,135.83,135.82,245.47613357]
[1740612426250,0.063,135.84,135.83,18.933972]
[1740612426581,0.063,135.84,135.83,26.296072]
[1740612427882,0.063,135.84,135.83,26.01174886]
[1740612429283,0.063,135.85,135.84,0.42648471]
[1740612429462,0.063,135.85,135.84,237.84964886]
[1740612429979,0.063,135.85,135.84,238.27613357]
[1740612430280,0.063,135.87,135.85,18.79181043]
[1740612430455,0.063,135.89,135.88,0.42648471]
[1740612430657,0.063,135.89,135.88,245.47613357]
[1740612430996,0.0001,135.89,135.88,247.61829514]
[1740612431165,0.0001,135.89,135.88,254.97769514]
[1740612431363,0.063,135.98,135.93,0.14216157]
[1740612431562,0.063,135.98,135.95,18.64964886]
[1740612432687,0.063,135.98,135.97,18.64964886]
[1740612434583,0.063,135.98,135.96,18.64964886]
[1740612434962,0.063,135.98,135.95,7.3554]
[1740612435168,0.063,135.98,135.96,18.64964886]
[1740612436388,0.063,135.98,135.95,18.64964886]
[1740612437379,0.063,135.98,135.93,206.52]
[1740612437691,82.963,135.98,135.93,131.3]
[1740612437865,0.7354,135.97,135.93,131.3]
[1740612438069,0.7354,135.97,135.93,7.18]
[1740612438666,82.9,135.96,135.9,18.64964886]
[1740612439373,82.9,135.95,135.87,7.3598]
[1740612439570,82.9,135.94,135.87,7.3598]
[1740612440184,82.9,135.94,135.88,18.64964886]
[1740612440377,0.7356,135.93,135.88,18.64964886]
[1740612440693,83.6356,135.93,135.86,96.9403]
[1740612441069,83.6356,135.93,135.86,7.18]
[1740612441269,83.6356,135.93,135.87,0.063]
[1740612442091,2.277,135.91,135.87,0.063]
[1740612442294,89.008,135.9,135.87,0.063]
[1740612444393,87.71015858,135.89,135.87,0.063]
[1740612445470,85.71015858,135.89,135.87,0.063]
[1740612445888,83.04216157,135.88,135.87,0.063]
[1740612446194,0.14216157,135.88,135.87,0.063]
[1740612446798,0.87806157,135.88,135.87,0.063]
[1740612448393,1.02022314,135.88,135.87,0.063]
[1740612448576,1.93219701,135.89,135.87,0.063]
[1740612448779,6.108,135.9,135.87,0.063]
[1740612453788,1.5413,135.91,135.87,0.063]
[1740612454584,2.277,135.91,135.87,0.063]
[1740612456696,83.77786157,135.92,135.87,0.063]
[1740612456903,82.9,135.92,135.87,0.063]
[1740612457080,83.6357,135.92,135.87,0.063]
[1740612457981,85.2972,135.95,135.87,0.063]
[1740612458804,85.2972,135.95,135.88,18.64964886]
[1740612460402,82.9,135.95,135.88,25.82964886]
[1740612460901,82.9,135.95,135.9,18.64964886]
[1740612461201,83.6355,135.95,135.89,7.3588]
[1740612461589,83.18432314,135.94,135.87,0.063]
[1740612461900,0.28432314,135.92,135.87,0.063]
[1740612462108,82.9,135.91,135.87,0.063]
[1740612462909,0.7358,135.9,135.87,0.063]
[1740612463090,82.9,135.89,135.87,0.063]
[1740612463285,89.2004,135.88,135.87,0.063]
[1740612463495,6.44256157,135.88,135.87,0.063]
[1740612464989,7.17846157,135.88,135.87,0.063]
[1740612465195,7.32062314,135.88,135.87,0.063]
[1740612465707,6.44256157,135.88,135.87,0.063]
[1740612465891,0.14216157,135.88,135.87,0.063]
[1740612466095,0.14216157,135.89,135.87,0.063]
[1740612466402,7.172,135.91,135.87,0.063]
[1740612466602,82.9,135.9,135.87,0.063]
[1740612467105,83.6358,135.9,135.87,0.063]
[1740612467411,0.14216157,135.89,135.87,0.063]